bitfinex/quotes_BTCUSD_20240719
["timestamp","ask_amount","ask_price","bid_price","bid_amount"]
[1721350144523,0.01212391,63731.0,63730.0,0.784557]
[1721350144733,0.01212391,63731.0,63730.0,0.470734]
[1721350145128,0.02612391,63731.0,63730.0,0.470734]
[1721350146805,0.02612391,63731.0,63730.0,0.784557]
[1721350147186,0.02612391,63731.0,63730.0,0.470734]
[1721350151210,0.02612391,63731.0,63730.0,0.156911]
[1721350151426,0.156919,63727.0,63723.0,0.156928]
[1721350151952,0.156919,63727.0,63715.0,0.0623]
[1721350151953,0.14125491,63723.0,63713.0,0.00203909]
[1721350152150,0.14125491,63723.0,63710.0,0.00203909]
[1721350152151,0.156958,63711.0,63710.0,0.00203909]
[1721350152357,0.156961,63710.0,63706.0,0.000913]
[1721350152554,0.223057,63712.0,63706.0,0.000913]
[1721350152811,0.223057,63712.0,63707.0,0.00203909]
[1721350152980,0.156959,63711.0,63707.0,0.00203909]
[1721350153534,0.223057,63712.0,63708.0,0.156965]
[1721350153727,0.002,63712.0,63707.0,0.00203909]
[1721350153926,0.002,63712.0,63710.0,0.15696]
[1721350154136,0.238141,63718.0,63713.0,0.156951]
[1721350154353,0.156941,63718.0,63713.0,0.156952]
[1721350154588,0.32325447,63719.0,63714.0,0.00203909]
[1721350154790,0.156948,63715.0,63711.0,0.00203909]
[1721350155288,0.004,63712.0,63711.0,0.00203909]
[1721350155889,0.156961,63710.0,63709.0,0.00203909]
[1721350156100,0.156968,63707.0,63706.0,0.000913]
[1721350156271,0.156966,63708.0,63707.0,0.00203909]
[1721350156863,0.156964,63709.0,63707.0,0.00203909]
[1721350157065,0.15696,63711.0,63707.0,0.00203909]
[1721350157292,0.313915,63712.0,63707.0,0.00203909]
[1721350157498,0.313908,63713.0,63707.0,0.00203909]
[1721350157499,0.156963,63709.0,63707.0,0.00203909]
[1721350157714,0.1462,63714.0,63707.0,0.00203909]
[1721350157916,0.313914,63712.0,63707.0,0.00203909]
[1721350158121,0.001,63709.0,63707.0,0.00203909]
[1721350158330,0.156962,63710.0,63707.0,0.00203909]
[1721350159470,0.156964,63709.0,63707.0,0.00203909]
[1721350160323,0.157964,63709.0,63707.0,0.00203909]
[1721350160527,0.001,63709.0,63707.0,0.00203909]
[1721350160732,0.001,63709.0,63707.0,0.15900609]
[1721350161519,0.001,63709.0,63707.0,0.00203909]
[1721350162103,0.157963,63709.0,63707.0,0.00203909]
[1721350163214,0.001,63709.0,63708.0,0.07717479]
[1721350163375,0.001,63709.0,63708.0,0.23414079]
[1721350163575,0.001,63709.0,63708.0,0.54807279]
[1721350164020,0.001,63709.0,63708.0,0.61207279]
[1721350164221,0.00075491,63714.0,63710.0,0.15696]
[1721350164555,0.15695,63715.0,63711.0,0.00203909]
[1721350166043,0.156952,63714.0,63711.0,0.00203909]
[1721350166221,0.156956,63712.0,63711.0,0.00203909]
[1721350166591,0.61729,63709.0,63708.0,0.00203909]
[1721350166718,0.156968,63708.0,63706.0,0.000913]
[1721350167159,0.156968,63707.0,63706.0,0.000913]
[1721350167310,0.156966,63708.0,63706.0,0.000913]
[1721350167511,0.156966,63708.0,63707.0,0.07921388]
[1721350167773,0.156966,63708.0,63707.0,0.07717479]
[1721350168545,0.156966,63708.0,63706.0,0.000913]
[1721350168743,0.156966,63708.0,63707.0,0.00203909]
[1721350168948,0.156968,63707.0,63706.0,0.000913]
[1721350169158,0.470905,63707.0,63706.0,0.000913]
[1721350170235,0.480905,63707.0,63706.0,0.000913]
[1721350170898,0.470905,63707.0,63706.0,0.000913]
[1721350171041,0.474905,63707.0,63706.0,0.000913]
[1721350171451,0.933242,63707.0,63706.0,0.000913]
[1721350173110,0.929242,63707.0,63706.0,0.000913]
[1721350173317,0.933242,63707.0,63706.0,0.000913]
[1721350173524,0.941242,63707.0,63706.0,0.000913]
[1721350174071,0.482905,63707.0,63706.0,0.000913]
[1721350174246,0.012,63707.0,63706.0,0.000913]
[1721350177326,0.168968,63707.0,63706.0,0.000913]
[1721350177936,0.012,63707.0,63706.0,0.000913]
[1721350183812,0.168968,63707.0,63706.0,0.000913]
[1721350184986,0.482905,63707.0,63706.0,0.000913]
[1721350185839,0.168968,63707.0,63706.0,0.000913]
[1721350186479,0.012,63707.0,63706.0,0.000913]
[1721350190995,0.012,63707.0,63706.0,0.00295209]
[1721350191241,0.012,63707.0,63706.0,0.000913]
[1721350192406,0.012,63707.0,63706.0,0.157884]
[1721350192609,0.012,63707.0,63706.0,0.000913]
[1721350193054,0.012,63707.0,63706.0,0.23505879]
[1721350194013,0.012,63707.0,63706.0,1.24218479]
[1721350194224,0.012,63707.0,63706.0,1.78870853]
[1721350194450,0.012,63707.0,63706.0,1.49776653]
[1721350195228,0.004,63707.0,63706.0,1.49776653]
[1721350195410,0.006,63707.0,63706.0,1.49776653]
[1721350195877,0.004,63707.0,63706.0,1.62814228]
[1721350196075,0.00083,63709.0,63708.0,1.098762]
[1721350196299,0.00083,63709.0,63708.0,1.39274374]
[1721350197945,0.00183,63709.0,63708.0,1.44274374]
[1721350198732,0.00183,63709.0,63708.0,1.39274374]
[1721350198935,0.00283,63709.0,63708.0,1.39374374]
[1721350204119,0.00283,63709.0,63708.0,0.471898]
[1721350204324,0.61012,63709.0,63708.0,0.001]
[1721350204533,0.924047,63709.0,63708.0,0.001]
[1721350204743,1.237974,63709.0,63708.0,0.001]
[1721350204960,1.24526558,63709.0,63708.0,0.001]
[1721350205163,1.24526558,63709.0,63706.0,0.000913]
[1721350205164,0.784842,63707.0,63706.0,0.000913]
[1721350205593,0.79209182,63707.0,63706.0,0.000913]
[1721350206437,0.93209182,63707.0,63706.0,0.000913]
[1721350206609,0.92809182,63707.0,63706.0,0.000913]
[1721350206965,0.93009182,63707.0,63706.0,0.000913]
[1721350207151,0.92809182,63707.0,63706.0,0.000913]
[1721350207766,0.93409182,63707.0,63706.0,0.000913]
[1721350208407,0.92809182,63707.0,63706.0,0.000913]
[1721350208607,0.93909182,63707.0,63706.0,0.000913]
[1721350209513,0.93509182,63707.0,63706.0,0.000913]
[1721350209971,0.93809182,63707.0,63706.0,0.000913]
[1721350212072,1.25202882,63707.0,63706.0,0.000913]
[1721350212279,1.28656499,63707.0,63706.0,0.000913]
[1721350212537,1.47643311,63707.0,63706.0,0.000913]
[1721350212686,1.44125627,63707.0,63706.0,0.000913]
[1721350212892,1.53461296,63707.0,63706.0,0.000913]
[1721350214584,1.44125627,63707.0,63706.0,0.000913]
[1721350214813,1.53461296,63707.0,63706.0,0.000913]
[1721350215134,1.44125627,63707.0,63706.0,0.000913]
[1721350215428,1.53461296,63707.0,63706.0,0.000913]
[1721350215644,1.44125627,63707.0,63706.0,0.000913]
[1721350216045,1.85519327,63707.0,63706.0,0.000913]
[1721350216269,1.93700761,63707.0,63706.0,0.000913]
[1721350216463,1.412739,63706.0,63705.0,0.004174]
[1721350216678,0.156983,63701.0,63700.0,0.0003014]
[1721350216885,1.22199742,63701.0,63700.0,0.0003014]
[1721350217020,1.53596342,63701.0,63700.0,0.0003014]
[1721350217236,1.54314222,63701.0,63700.0,0.0003014]
[1721350217449,1.63644903,63701.0,63700.0,0.0003014]
[1721350217653,1.54314222,63701.0,63700.0,0.0003014]
[1721350218100,1.63644903,63701.0,63700.0,0.0003014]
[1721350218370,1.54314222,63701.0,63700.0,0.0003014]
[1721350218609,1.55814222,63701.0,63700.0,0.0003014]
[1721350218998,1.62847373,63701.0,63700.0,0.0003014]
[1721350219201,1.55852908,63701.0,63700.0,0.0003014]
[1721350220292,1.60514387,63701.0,63700.0,0.0003014]
[1721350221209,1.57025633,63701.0,63700.0,0.0003014]
[1721350222261,1.51646274,63701.0,63700.0,0.0003014]
[1721350225239,1.52603382,63701.0,63700.0,0.0003014]
[1721350226928,1.83999982,63701.0,63700.0,0.0003014]
[1721350227141,1.83999982,63701.0,63681.0,0.314065]
[1721350227142,1.599056,63691.0,63672.0,0.00213909]
[1721350227359,1.93095168,63691.0,63673.0,0.23626388]
[1721350227526,2.34496768,63691.0,63673.0,0.23422479]
[1721350227730,2.34496768,63691.0,63674.0,0.00203909]
[1721350227731,2.41478755,63691.0,63674.0,0.00203909]
[1721350227933,2.10077155,63691.0,63678.0,0.00203909]
[1721350228135,2.03095168,63691.0,63679.0,0.00203909]
[1721350228310,2.03095168,63691.0,63674.0,0.1375]
[1721350228311,2.34996768,63691.0,63674.0,0.1375]
[1721350228716,2.34496768,63691.0,63675.0,0.00203909]
[1721350228920,2.35896768,63691.0,63675.0,0.00203909]
[1721350229324,2.03095168,63691.0,63676.0,0.157044]
[1721350229536,2.03095168,63691.0,63675.0,0.00203909]
[1721350229537,1.99463774,63691.0,63678.0,0.00203909]
[1721350229789,1.26161062,63691.0,63684.0,0.1375]
[1721350229948,0.585024,63691.0,63684.0,0.1375]
[1721350230158,0.57276598,63691.0,63685.0,0.00203909]
[1721350230352,0.88678198,63691.0,63685.0,0.00203909]
[1721350230701,0.60076598,63691.0,63684.0,0.1375]
[1721350230905,0.02974198,63691.0,63684.0,0.1375]
[1721350231108,0.01574198,63691.0,63686.0,0.00203909]
[1721350231318,0.01574198,63691.0,63688.0,0.157014]
[1721350231319,0.02774198,63691.0,63688.0,0.157014]
[1721350231532,0.02774198,63691.0,63688.0,0.23418879]
[1721350231911,0.02774198,63691.0,63688.0,0.07717479]
[1721350232108,0.01574198,63691.0,63688.0,0.07717479]
[1721350232324,0.01574198,63691.0,63689.0,0.157012]
[1721350232521,0.00174198,63691.0,63689.0,0.157012]
[1721350232952,0.00174198,63691.0,63688.0,0.07717479]
[1721350232953,0.01874198,63691.0,63690.0,0.794226]
[1721350233160,0.01874198,63691.0,63690.0,0.873326]
[1721350233365,0.01874198,63691.0,63690.0,1.40212874]
[1721350233579,0.01874198,63691.0,63690.0,1.78914974]
[1721350234066,0.46304871,63707.0,63706.0,0.1395]
[1721350234264,0.00083,63709.0,63708.0,0.470898]
[1721350234459,0.00083,63709.0,63708.0,1.098762]
[1721350234962,0.00083,63709.0,63708.0,0.78483]
[1721350235392,0.00083,63709.0,63708.0,1.098762]
[1721350235602,0.00083,63709.0,63708.0,0.78483]
[1721350235756,0.00183,63709.0,63708.0,0.471898]
[1721350235959,0.00183,63709.0,63708.0,0.78583]
[1721350236138,0.00183,63709.0,63708.0,0.78483]
[1721350236346,0.00183,63709.0,63708.0,0.470898]
[1721350236805,0.00183,63709.0,63708.0,0.156966]
[1721350237030,0.00183,63709.0,63708.0,0.470898]
[1721350237315,0.00183,63709.0,63708.0,0.78483]
[1721350237548,0.00383,63709.0,63708.0,0.80383]
[1721350237751,0.00183,63709.0,63708.0,0.79583]
[1721350238267,0.00183,63709.0,63708.0,1.117762]
[1721350238268,0.00283,63709.0,63708.0,1.117762]
[1721350238530,0.00183,63709.0,63708.0,1.109762]
[1721350238767,0.00183,63709.0,63708.0,1.31414374]
[1721350238961,0.00183,63709.0,63708.0,1.27214374]
[1721350238962,0.00283,63709.0,63708.0,1.27214374]
[1721350239190,0.00383,63709.0,63708.0,1.29214374]
[1721350239377,0.00383,63709.0,63708.0,1.30014374]
[1721350239544,0.00283,63709.0,63708.0,1.28414374]
[1721350239950,0.00183,63709.0,63708.0,1.29414374]
[1721350240321,0.00083,63709.0,63708.0,1.28414374]
[1721350240723,0.00075491,63723.0,63722.0,0.156931]
[1721350240958,0.52694871,63727.0,63724.0,0.156926]
[1721350240959,0.00075491,63726.0,63724.0,0.156926]
[1721350241358,0.16632246,63728.0,63724.0,0.156926]
[1721350241590,0.00075491,63727.0,63724.0,0.156926]
[1721350241804,0.00075491,63727.0,63725.0,0.156924]
[1721350242001,0.156914,63729.0,63722.0,0.313859]
[1721350242211,0.005,63726.0,63724.0,0.156925]
[1721350242665,0.005,63726.0,63722.0,0.313859]
[1721350242666,0.005,63723.0,63722.0,0.470794]
[1721350242904,0.005,63723.0,63722.0,0.784657]
[1721350243134,0.005,63726.0,63725.0,0.470772]
[1721350243569,0.012,63726.0,63725.0,0.470772]
[1721350244030,0.003,63726.0,63725.0,0.470772]
[1721350244262,0.012,63726.0,63725.0,0.93442]
[1721350244710,0.009,63726.0,63725.0,0.93442]
[1721350245189,0.013,63726.0,63725.0,0.93442]
[1721350245670,0.013,63726.0,63725.0,0.78562]
[1721350248262,0.003,63726.0,63725.0,0.78562]
[1721350251125,0.003,63726.0,63725.0,0.471772]
[1721350251373,0.299721,63726.0,63725.0,0.001]
[1721350251857,0.613564,63726.0,63725.0,0.001]
[1721350252528,0.299721,63726.0,63725.0,0.001]
[1721350253027,0.927407,63726.0,63725.0,0.001]
[1721350253733,1.08178874,63726.0,63725.0,0.001]
[1721350253963,1.39563174,63726.0,63725.0,0.001]
[1721350256081,1.08178874,63726.0,63725.0,0.001]
[1721350256607,0.927407,63726.0,63725.0,0.001]
[1721350257092,0.003,63726.0,63725.0,0.001]
[1721350257827,0.003,63726.0,63725.0,0.157924]
[1721350258400,0.003,63726.0,63725.0,0.471772]
[1721350258978,0.003,63726.0,63725.0,0.157924]
[1721350260251,0.003,63726.0,63725.0,0.471772]
[1721350260622,0.003,63726.0,63725.0,0.001]
[1721350261101,0.003,63726.0,63725.0,0.157924]
[1721350262197,0.003,63726.0,63725.0,0.78562]
[1721350262336,0.003,63726.0,63725.0,0.85092]
[1721350263579,0.003,63726.0,63725.0,1.31914974]
[1721350263760,0.003,63726.0,63725.0,1.34214974]
[1721350269238,0.003,63726.0,63725.0,0.78562]
[1721350269661,0.003,63726.0,63725.0,0.471772]
[1721350269864,0.003,63726.0,63725.0,0.78562]
[1721350270067,0.003,63726.0,63725.0,1.25384974]
[1721350270281,0.003,63726.0,63725.0,1.39334974]
[1721350271031,0.003,63726.0,63725.0,1.41634974]
[1721350271395,0.003,63726.0,63725.0,1.41726274]
[1721350271595,0.00383,63726.0,63725.0,1.41726274]
[1721350274686,0.00383,63726.0,63725.0,1.10341474]
[1721350274928,0.00383,63726.0,63725.0,0.786533]
[1721350276417,0.00083,63726.0,63725.0,0.786533]
[1721350276622,0.00083,63726.0,63725.0,0.789533]
[1721350276820,0.00083,63726.0,63725.0,0.788533]
[1721350277024,0.00183,63726.0,63725.0,0.788533]
[1721350279981,0.00083,63726.0,63725.0,0.788533]
[1721350280205,0.00083,63726.0,63725.0,0.787533]
[1721350280379,0.00183,63726.0,63725.0,0.794533]
[1721350280985,0.00183,63726.0,63725.0,0.480685]
[1721350281183,0.457073,63726.0,63725.0,0.009913]
[1721350281386,0.927837,63726.0,63725.0,0.009913]
[1721350281606,1.24168,63726.0,63725.0,0.009913]
[1721350281811,1.93250207,63726.0,63725.0,0.009913]
[1721350282010,2.03250207,63726.0,63725.0,0.009913]
[1721350282175,2.07917964,63726.0,63725.0,0.009913]
[1721350283159,1.99606174,63726.0,63725.0,0.009913]
[1721350283368,2.03270631,63726.0,63725.0,0.009913]
[1721350283545,2.03370631,63726.0,63725.0,0.009913]
[1721350283694,2.03370631,63726.0,63725.0,0.007913]
[1721350283900,2.03570631,63726.0,63725.0,0.000913]
[1721350284101,0.44679557,63726.0,63725.0,0.001913]
[1721350284348,0.11183,63726.0,63725.0,0.001913]
[1721350284641,0.00783,63726.0,63725.0,0.001913]
[1721350284811,0.01483,63726.0,63725.0,0.002913]
[1721350287958,0.171751,63726.0,63725.0,0.002913]
[1721350288183,0.01483,63726.0,63725.0,0.002913]
[1721350291441,0.171751,63726.0,63725.0,0.002913]
[1721350292835,0.485594,63726.0,63725.0,0.002913]
[1721350293039,1.19538,63726.0,63725.0,0.002913]
[1721350293243,1.34181268,63726.0,63725.0,0.002913]
[1721350293453,1.51952713,63726.0,63725.0,0.002913]
[1721350293657,1.549529,63726.0,63725.0,0.002913]
[1721350293825,1.64285984,63726.0,63725.0,0.002913]
[1721350294369,1.549529,63726.0,63725.0,0.002913]
[1721350294828,1.64285984,63726.0,63725.0,0.002913]
[1721350295083,1.64285984,63726.0,63701.0,0.40489353]
[1721350295084,0.929605,63710.0,63709.0,0.00203909]
[1721350295300,0.470905,63707.0,63706.0,0.00203909]
[1721350295456,0.156971,63706.0,63702.0,0.15698]
[1721350295658,0.156971,63706.0,63703.0,0.00203909]
[1721350295659,0.784855,63706.0,63703.0,0.00203909]
[1721350295931,0.850355,63706.0,63700.0,0.00203909]
[1721350296139,1.71382074,63706.0,63691.0,0.00203909]
[1721350296341,1.81924028,63706.0,63690.0,0.009174]
[1721350296520,0.157001,63694.0,63690.0,0.009174]
[1721350296675,0.157001,63694.0,63691.0,0.00203909]
[1721350296880,0.157001,63694.0,63690.0,0.166184]
[1721350297084,0.157001,63694.0,63691.0,0.00203909]
[1721350297310,0.157001,63694.0,63690.0,0.166184]
[1721350297719,0.157001,63694.0,63691.0,0.00203909]
[1721350297909,0.157001,63694.0,63691.0,0.15904609]
[1721350298113,0.157001,63694.0,63691.0,0.157007]
[1721350298331,0.158001,63694.0,63691.0,0.162007]
[1721350298530,0.158001,63694.0,63692.0,0.00203909]
[1721350298873,0.158001,63694.0,63691.0,0.005]
[1721350298874,0.846427,63692.0,63691.0,0.005]
[1721350299072,1.160438,63692.0,63691.0,0.005]
[1721350299721,1.260438,63692.0,63691.0,0.005]
[1721350300230,1.261438,63692.0,63691.0,0.01]
[1721350300436,1.261438,63692.0,63691.0,0.005]
[1721350300633,1.099056,63691.0,63690.0,0.009174]
[1721350302114,1.39363774,63691.0,63690.0,0.009174]
[1721350302518,1.80765374,63691.0,63690.0,0.009174]
[1721350302724,1.80765374,63691.0,63690.0,0.013174]
[1721350303370,1.80765374,63691.0,63690.0,0.014174]
[1721350303883,1.80765374,63691.0,63690.0,0.013174]
[1721350304026,1.80765374,63691.0,63690.0,0.009174]
[1721350304228,1.83065374,63691.0,63690.0,0.009174]
[1721350304626,1.82165374,63691.0,63690.0,0.009174]
[1721350304870,1.83565374,63691.0,63690.0,0.009174]
[1721350305430,1.84965374,63691.0,63690.0,0.009174]
[1721350305686,1.83565374,63691.0,63690.0,0.009174]
[1721350305899,1.84965374,63691.0,63690.0,0.010174]
[1721350306468,1.83565374,63691.0,63690.0,0.009174]
[1721350306677,1.84965374,63691.0,63690.0,0.010174]
[1721350306874,1.89965374,63691.0,63690.0,0.010174]
[1721350307044,1.84965374,63691.0,63690.0,0.010174]
[1721350307238,1.80765374,63691.0,63690.0,0.009174]
[1721350307442,1.53553865,63691.0,63690.0,0.010174]
[1721350307650,2.02163774,63691.0,63690.0,0.010174]
[1721350308279,2.00763774,63691.0,63690.0,0.010174]
[1721350308510,2.47600331,63691.0,63690.0,0.010174]
[1721350308727,2.49000331,63691.0,63690.0,0.010174]
[1721350308914,2.47600331,63691.0,63690.0,0.009174]
[1721350309115,2.48900331,63691.0,63690.0,0.009174]
[1721350309421,2.50300331,63691.0,63690.0,0.010174]
[1721350309856,2.48900331,63691.0,63690.0,0.009174]
[1721350310157,2.34865374,63691.0,63690.0,0.010174]
[1721350310511,2.32165374,63691.0,63690.0,0.010174]
[1721350310911,2.33565374,63691.0,63690.0,0.010174]
[1721350320286,2.38565374,63691.0,63690.0,0.010174]
[1721350320467,0.7852,63678.0,63677.0,0.0144187]
[1721350321717,0.7892,63678.0,63677.0,0.0144187]
[1721350322299,1.25766174,63678.0,63677.0,0.0144187]
[1721350322588,1.35766174,63678.0,63677.0,0.0144187]
[1721350326617,1.49466174,63678.0,63677.0,0.0144187]
[1721350326824,1.80874174,63678.0,63677.0,0.0144187]
[1721350327927,1.80474174,63678.0,63677.0,0.0144187]
[1721350328129,1.81174174,63678.0,63677.0,0.0154187]
[1721350328550,1.81574174,63678.0,63677.0,0.0154187]
[1721350329123,0.26804,63678.0,63677.0,0.0154187]
[1721350329295,0.58212,63678.0,63677.0,0.0154187]
[1721350329500,1.11618174,63678.0,63677.0,0.0154187]
[1721350329707,1.43026174,63678.0,63677.0,0.0154187]
[1721350331043,1.45488352,63678.0,63677.0,0.0154187]
[1721350331249,1.60923309,63678.0,63677.0,0.0154187]
[1721350331713,1.45488352,63678.0,63677.0,0.0154187]
[1721350333835,1.95488352,63678.0,63677.0,0.0154187]
[1721350334039,1.96417402,63678.0,63677.0,0.0154187]
[1721350335574,1.96417402,63678.0,63672.0,0.0001]
[1721350335575,1.177764,63673.0,63672.0,0.0001]
[1721350335774,1.177764,63673.0,63666.0,0.009174]
[1721350335775,0.157064,63668.0,63666.0,0.009174]
[1721350335976,0.785335,63667.0,63666.0,0.009174]
[1721350336189,1.35385074,63667.0,63666.0,0.009174]
[1721350337024,1.03971674,63667.0,63666.0,0.009174]
[1721350337265,0.1,63667.0,63666.0,0.009174]
[1721350337480,0.27007437,63667.0,63666.0,0.070174]
[1721350337697,0.272067,63667.0,63666.0,0.071174]
[1721350338238,0.257067,63667.0,63666.0,0.009174]
[1721350338439,0.571201,63667.0,63666.0,0.009174]
[1721350339294,1.47379624,63667.0,63666.0,0.009174]
[1721350339451,1.35385074,63667.0,63666.0,0.009174]
[1721350339650,1.36485074,63667.0,63666.0,0.009174]
[1721350341108,1.51095074,63667.0,63666.0,0.009174]
[1721350341364,1.82508474,63667.0,63666.0,0.009174]
[1721350341780,2.47943431,63667.0,63666.0,0.009174]
[1721350342650,2.52463944,63667.0,63666.0,0.009174]
[1721350342870,0.5,63660.0,63652.0,0.01121309]
[1721350343073,0.1655,63666.0,63641.0,0.00203909]
[1721350343074,0.785532,63651.0,63641.0,0.00203909]
[1721350343289,1.25412674,63651.0,63640.0,0.0830006]
[1721350343487,1.50937774,63651.0,63640.0,0.0830006]
[1721350343843,1.35502817,63651.0,63640.0,0.0830006]
[1721350344012,1.35502817,63651.0,63641.0,0.00203909]
[1721350344013,1.04081517,63651.0,63641.0,0.00203909]
[1721350344219,0.571319,63651.0,63650.0,0.0768]
[1721350344392,0.572319,63651.0,63650.0,0.0778]
[1721350344592,0.571319,63651.0,63650.0,0.0768]
[1721350345109,0.1,63651.0,63650.0,0.686127]
[1721350345263,0.157096,63655.0,63650.0,0.371909]
[1721350345458,0.157096,63655.0,63652.0,0.07717479]
[1721350345459,0.10075491,63654.0,63652.0,0.07717479]
[1721350345657,0.10075491,63654.0,63650.0,0.2148]
[1721350345658,0.1,63654.0,63650.0,0.2148]
[1721350345863,0.1,63654.0,63652.0,0.07717479]
[1721350346059,0.1,63654.0,63653.0,0.15914009]
[1721350346279,0.1,63654.0,63653.0,0.471304]
[1721350346478,0.1,63658.0,63654.0,0.157098]
[1721350346681,0.15513665,63657.0,63652.0,0.23427679]
[1721350346882,0.003,63654.0,63653.0,0.00203909]
[1721350347082,0.003,63654.0,63650.0,0.2148]
[1721350347083,0.157105,63652.0,63650.0,0.2148]
[1721350347296,0.93991374,63651.0,63650.0,0.0768]
[1721350347485,1.06562581,63651.0,63650.0,0.0768]
[1721350347917,0.93991374,63651.0,63650.0,0.0768]
[1721350349076,1.29933187,63651.0,63650.0,0.0768]
[1721350349832,0.98511887,63651.0,63650.0,0.0768]
[1721350350033,0.62570074,63651.0,63650.0,0.0768]
[1721350350250,0.161106,63651.0,63650.0,0.0768]
[1721350350454,0.004,63651.0,63650.0,0.2148]
[1721350350676,0.011,63651.0,63650.0,0.2148]
[1721350351245,0.004,63651.0,63650.0,0.2148]
[1721350351444,0.011,63651.0,63650.0,0.2148]
[1721350352336,0.011,63651.0,63650.0,0.686127]
[1721350352468,0.007,63651.0,63650.0,0.686127]
[1721350352668,0.007,63651.0,63650.0,0.371909]
[1721350352878,0.007,63651.0,63650.0,0.2148]
[1721350353475,0.157105,63652.0,63650.0,0.2148]
[1721350353680,0.157105,63652.0,63650.0,0.0768]
[1721350353886,0.00075491,63651.0,63650.0,0.0768]
[1721350354099,0.157105,63652.0,63650.0,0.0768]
[1721350354296,0.157106,63651.0,63650.0,0.0768]
[1721350354556,0.158106,63651.0,63650.0,0.0768]
[1721350354910,0.001,63651.0,63650.0,0.0768]
[1721350355238,0.001,63651.0,63650.0,0.687927]
[1721350355407,0.001,63651.0,63650.0,1.316363]
[1721350356023,0.15783691,63661.0,63658.0,0.1398]
[1721350356230,0.157086,63660.0,63658.0,0.1398]
[1721350356427,0.4753,63662.0,63658.0,0.1398]
[1721350356428,0.157086,63659.0,63658.0,0.1398]
[1721350356641,0.157086,63659.0,63658.0,0.0791]
[1721350356978,0.157086,63659.0,63654.0,0.0648]
[1721350356979,0.157096,63656.0,63654.0,0.0648]
[1721350357255,0.157096,63656.0,63655.0,0.00203909]
[1721350357455,0.157096,63656.0,63654.0,0.0648]
[1721350358015,0.157096,63655.0,63654.0,0.0648]
[1721350359949,0.005,63656.0,63654.0,0.0648]
[1721350360111,0.001,63655.0,63654.0,0.45617279]
[1721350360336,0.005,63655.0,63654.0,0.92746979]
[1721350360540,0.005,63655.0,63654.0,1.00736979]
[1721350360988,0.001,63655.0,63654.0,1.00736979]
[1721350361164,0.001,63655.0,63654.0,0.930195]
[1721350361781,0.001,63655.0,63654.0,0.615997]
[1721350362045,0.005,63656.0,63655.0,0.157096]
[1721350362289,0.005,63656.0,63655.0,0.471289]
[1721350362466,0.00075491,63661.0,63656.0,0.157094]
[1721350362667,0.157085,63660.0,63656.0,0.157094]
[1721350362892,0.00075491,63659.0,63656.0,0.157094]
[1721350363068,0.00075491,63661.0,63653.0,0.07717479]
[1721350363269,0.00075491,63661.0,63660.0,0.301884]
[1721350363490,0.00075491,63661.0,63660.0,0.1448]
[1721350363694,0.002,63661.0,63660.0,0.616053]
[1721350364076,0.00075491,63665.0,63661.0,0.157079]
[1721350364481,0.15782691,63665.0,63661.0,0.157079]
[1721350364698,0.157072,63665.0,63661.0,0.157079]
[1721350365106,0.00075491,63672.0,63664.0,0.00203909]
[1721350365342,0.00075491,63672.0,63665.0,0.314143]
[1721350365523,0.00075491,63672.0,63668.0,0.157063]
[1721350365920,0.157052,63673.0,63669.0,0.00203909]
[1721350366494,0.009,63672.0,63669.0,0.00203909]
[1721350366721,0.157052,63673.0,63669.0,0.00203909]
[1721350366920,0.011,63672.0,63669.0,0.00203909]
[1721350367418,0.157059,63670.0,63667.0,0.00203909]
[1721350367616,0.157059,63670.0,63666.0,0.00203909]
[1721350368831,0.00075491,63669.0,63665.0,0.15707]
[1721350369002,0.157062,63669.0,63666.0,0.00203909]
[1721350369211,0.471201,63667.0,63666.0,0.00203909]
[1721350369363,0.157071,63666.0,63662.0,0.15911809]
[1721350369563,0.157074,63665.0,63662.0,0.00203909]
[1721350370444,0.157068,63667.0,63662.0,0.00203909]
[1721350370613,0.157069,63666.0,63662.0,0.00203909]
[1721350370820,0.157069,63666.0,63662.0,0.15911709]
[1721350371364,0.001,63665.0,63662.0,0.15911709]
[1721350372361,0.157069,63666.0,63662.0,0.15911709]
[1721350372565,0.157072,63665.0,63662.0,0.00203909]
[1721350372877,0.314131,63668.0,63662.0,0.00203909]
[1721350372878,0.157077,63663.0,63662.0,0.00203909]
[1721350373108,0.157077,63663.0,63660.0,0.157083]
[1721350373109,0.157072,63665.0,63661.0,0.15911909]
[1721350373308,0.157072,63665.0,63661.0,0.00203909]
[1721350373506,0.157072,63665.0,63661.0,0.157081]
[1721350373745,0.157072,63665.0,63662.0,0.00203909]
[1721350374152,0.314127,63669.0,63663.0,0.157076]
[1721350374392,0.314127,63669.0,63664.0,0.00203909]
[1721350374599,0.157065,63668.0,63664.0,0.15911309]
[1721350375450,0.36070126,63675.0,63664.0,0.15911309]
[1721350375451,0.36070126,63675.0,63667.0,0.07717479]
[1721350375655,0.00075491,63674.0,63671.0,0.157055]
[1721350375856,0.15779891,63677.0,63672.0,0.157054]
[1721350376067,0.1,63676.0,63673.0,0.294852]
[1721350376271,0.1,63676.0,63673.0,0.1378]
[1721350376591,0.02,63675.0,63673.0,0.1378]
[1721350376790,0.02,63675.0,63673.0,0.294852]
[1721350377103,0.1,63676.0,63673.0,0.1378]
[1721350377470,0.157047,63675.0,63673.0,0.1378]
[1721350378090,0.157047,63675.0,63671.0,0.157056]
[1721350378091,0.009,63676.0,63672.0,0.157052]
[1721350378265,0.00975491,63676.0,63672.0,0.157052]
[1721350378466,0.00975491,63676.0,63671.0,0.314113]
[1721350378467,0.00975491,63676.0,63673.0,0.157052]
[1721350378668,0.009,63676.0,63673.0,0.157052]
[1721350378847,0.005,63675.0,63674.0,0.157049]
[1721350379045,0.005,63675.0,63674.0,0.471148]
[1721350379046,0.013,63675.0,63674.0,0.471148]
[1721350379247,0.008,63675.0,63666.0,0.0633]